lending/lending_fUSD_20250131
["ID","MTS","AMOUNT","RATE_DAILY","PERIOD"]
[351045882,1738306268621,-1033.67,0.0002,3]
[351045883,1738306268631,-501.39,0.0002,3]
[351045884,1738306268640,-500.0,0.0002,3]
[351045885,1738306268649,-500.0,0.0002,3]
[351045886,1738306268658,-500.0,0.0002,3]
[351045887,1738306268667,-500.0,0.0002,3]
[351045888,1738306268677,-541.07,0.0002,3]
[351045889,1738306268688,-1146.06,0.0002,3]
[351045890,1738306268697,-500.0,0.0002,3]
[351045891,1738306268707,-500.0,0.0002,3]
[351045892,1738306268716,-500.0,0.0002,3]
[351045893,1738306268726,-538.76,0.0002,3]
[351045894,1738306268735,-500.0,0.0002,3]
[351045895,1738306268745,-629.83,0.0002,3]
[351045896,1738306268755,-150.671323,0.0002,3]
[351045897,1738306268765,-563.8,0.0002,3]
[351045898,1738306268775,-500.0,0.0002,3]
[351045899,1738306268784,-612.23,0.0002,3]
[351045900,1738306268793,-500.0,0.0002,3]
[351045901,1738306268802,-500.0,0.0002,3]
[351045902,1738306268812,-1133.72,0.0002,3]
[351045903,1738306268821,-728.69,0.0002,3]
[351045904,1738306268830,-1066.0,0.0002,3]
[351045905,1738306268840,-1104.72,0.0002,3]
[351045906,1738306268849,-502.71,0.0002,3]
[351045907,1738306268858,-806.0,0.0002,3]
[351045908,1738306268867,-500.0,0.0002,3]
[351045909,1738306268876,-500.0,0.0002,3]
[351045910,1738306268886,-500.0,0.0002,3]
[351045911,1738306268895,-516.74,0.0002,3]
[351045912,1738306268904,-500.0,0.0002,3]
[351045913,1738306268914,-1115.4,0.0002,3]
[351045914,1738306268923,-726.75,0.0002,3]
[351045915,1738306268933,-755.18,0.0002,3]
[351045916,1738306268942,-500.0,0.0002,3]
[351045917,1738306268951,-618.65,0.0002,3]
[351045918,1738306268963,-917.2,0.0002,3]
[351045919,1738306268972,-847.88,0.0002,3]
[351045920,1738306268981,-1239.48,0.0002,3]
[351045921,1738306268990,-500.0,0.0002,3]
[351045922,1738306268999,-633.32,0.0002,3]
[351045923,1738306269015,-1824.23,0.0002,3]
[351045924,1738306269024,-500.0,0.0002,3]
[351045925,1738306269034,-500.0,0.0002,3]
[351045926,1738306269043,-649.15010794,0.0002,3]
[351045927,1738306269054,-500.0,0.0002,3]
[351045928,1738306269063,-500.0,0.0002,3]
[351045929,1738306269072,-821.59,0.0002,3]
[351045930,1738306269081,-500.0,0.0002,3]
[351045931,1738306269092,-500.0,0.0002,3]
[351045932,1738306269102,-1462.22,0.0002,3]
[351045933,1738306269110,-500.0,0.0002,3]
[351045934,1738306269120,-815.19,0.0002,3]
[351045935,1738306269129,-500.0,0.0002,3]
[351045936,1738306269138,-720.68,0.0002,3]
[351045937,1738306269147,-500.0,0.0002,3]
[351045938,1738306269156,-1052.43,0.0002,3]
[351045939,1738306269165,-500.0,0.0002,3]
[351045940,1738306269174,-500.0,0.0002,3]
[351045941,1738306269184,-519.86,0.0002,3]
[351045942,1738306269193,-500.0,0.0002,3]
[351045943,1738306269202,-638.90520016,0.0002,3]
[351045944,1738306269214,-762.44,0.0002,3]
[351045945,1738306269223,-500.0,0.0002,3]
[351045946,1738306269232,-500.0,0.0002,3]
[351045947,1738306269241,-500.0,0.0002,3]
[351045948,1738306269250,-500.0,0.0002,3]
[351045949,1738306269259,-596.94,0.0002,3]
[351045950,1738306269269,-870.85,0.0002,3]
[351045951,1738306269278,-500.0,0.0002,3]
[351045952,1738306269287,-3120.26,0.0002,3]
[351045953,1738306269296,-514.66,0.0002,3]
[351045954,1738306269306,-500.0,0.0002,3]
[351045955,1738306269315,-1059.42,0.0002,3]
[351045956,1738306269324,-955.99,0.0002,3]
[351045957,1738306269333,-696.01,0.0002,2]
[351045958,1738306269343,-920.05,0.0002,3]
[351045959,1738306269352,-500.0,0.0002,3]
[351045960,1738306269361,-500.0,0.0002,3]
[351045961,1738306269369,-1737.45,0.0002,3]
[351045962,1738306269378,-883.16,0.0002,3]
[351045963,1738306269388,-240.77538844,0.0002,3]
[351045964,1738306269397,-2134.12,0.0002,3]
[351045965,1738306269406,-500.0,0.0002,3]
[351045966,1738306269415,-839.72,0.0002,3]
[351045967,1738306269424,-1169.41,0.0002,3]
[351045968,1738306269434,-1385.09,0.0002,3]
[351045969,1738306269443,-1394.44,0.0002,3]
[351045970,1738306269452,-500.0,0.0002,3]
[351045971,1738306269463,-500.0,0.0002,3]
[351045972,1738306269472,-3348.08,0.0002,3]
[351045973,1738306269482,-500.0,0.0002,3]
[351045974,1738306269492,-924.15,0.0002,3]
[351045975,1738306269502,-500.0,0.0002,3]
[351045976,1738306269512,-1127.44,0.0002,3]
[351045978,1738306269522,-674.08,0.0002,3]
[351045979,1738306269531,-3250.85,0.0002,3]
[351045980,1738306269542,-1133.24,0.0002,3]
[351045981,1738306269552,-1845.5,0.0002,3]
[351045982,1738306269563,-500.0,0.0002,3]
[351045983,1738306269573,-1954.11,0.0002,3]
[351045984,1738306269584,-500.0,0.0002,3]
[351045985,1738306269594,-500.0,0.0002,3]
[351045986,1738306269604,-500.0,0.0002,3]
[351045987,1738306269615,-500.0,0.0002,3]
[351045988,1738306269625,-500.0,0.0002,3]
[351045989,1738306269635,-645.35,0.0002,3]
[351045990,1738306269644,-942.8,0.0002,3]
[351045991,1738306269655,-500.0,0.0002,3]
[351045992,1738306269664,-4610.94,0.0002,3]
[351045993,1738306269674,-6387.1,0.0002,3]
[351045994,1738306269684,-594.96,0.0002,3]
[351045995,1738306269694,-500.0,0.0002,3]
[351045996,1738306269704,-766.14,0.0002,3]
[351045997,1738306269720,-519.2,0.0002,3]
[351045998,1738306269729,-582.14,0.0002,3]
[351045999,1738306269740,-11987.44,0.0002,3]
[351046000,1738306269752,-1269.84,0.0002,3]
[351046001,1738306269762,-500.0,0.0002,3]
[351046002,1738306269772,-1367.61,0.0002,3]
[351046003,1738306269782,-937.78,0.0002,3]
[351046004,1738306269792,-1640.43,0.0002,3]
[351046005,1738306269802,-540.26,0.0002,3]
[351046006,1738306269812,-1981.83,0.0002,3]
[351046007,1738306269821,-8948.91,0.0002,3]
[351046008,1738306269831,-2567.08,0.0002,3]
[351046009,1738306269840,-631.98,0.0002,3]
[351046010,1738306269851,-750.68,0.0002,3]
[351046011,1738306269861,-2616.13,0.0002,3]
[351046012,1738306269871,-1071.39,0.0002,3]
[351046013,1738306269880,-500.0,0.0002,3]
[351046014,1738306269889,-1260.83,0.0002,3]
[351046015,1738306269899,-500.0,0.0002,3]
[351046016,1738306269908,-2220.27,0.0002,3]
[351046017,1738306269918,-500.0,0.0002,3]
[351046018,1738306269927,-500.0,0.0002,3]
[351046019,1738306269936,-595.77,0.0002,3]
[351046020,1738306269945,-1589.24,0.0002,3]
[351046021,1738306269955,-1903.2,0.0002,3]
[351046022,1738306269971,-1712.2,0.0002,3]
[351046023,1738306269981,-3227.95,0.0002,3]
[351046024,1738306269991,-500.0,0.0002,3]
[351046025,1738306270001,-698.07,0.0002,3]
[351046026,1738306270011,-1637.86,0.0002,3]
[351046027,1738306270022,-500.0,0.0002,3]
[351046028,1738306270031,-1085.18,0.0002,3]
[351046029,1738306270041,-636.13,0.0002,3]
[351046030,1738306270051,-662.78,0.0002,3]
[351046031,1738306270061,-6654.01,0.0002,3]
[351046032,1738306270074,-4419.8,0.0002,3]
[351046033,1738306270085,-2110.0,0.0002,2]
[351046034,1738306270095,-2914.04,0.0002,3]
[351046035,1738306270105,-500.0,0.0002,3]
[351046036,1738306270115,-1271.68,0.0002,3]
[351046037,1738306270125,-922.13,0.0002,3]
[351046038,1738306270134,-535.94,0.0002,3]
[351046039,1738306270144,-795.93,0.0002,3]
[351046040,1738306270155,-674.93,0.0002,3]
[351046041,1738306270164,-7050.63,0.0002,3]
[351046042,1738306270173,-2874.0,0.0002,3]
[351046043,1738306270183,-1253.83,0.0002,3]
[351046044,1738306270192,-878.83,0.0002,3]
[351046045,1738306270202,-4857.43,0.0002,3]
[351046046,1738306270215,-2490.49,0.0002,3]
[351046047,1738306270224,-1106.34,0.0002,3]
[351046048,1738306270234,-848.25,0.0002,3]
[351046049,1738306270243,-500.0,0.0002,3]
[351046050,1738306270254,-2234.81,0.0002,3]
[351046051,1738306270263,-789.12,0.0002,3]
[351046052,1738306270272,-5756.47,0.0002,3]
[351046053,1738306270281,-6250.12,0.0002,3]
[351046054,1738306270290,-506.49544693,0.0002,3]
[351046055,1738306270300,-500.0,0.0002,3]
[351046056,1738306270309,-500.0,0.0002,3]
[351046057,1738306270318,-709.82,0.0002,3]
[351046058,1738306270327,-640.66,0.0002,2]
[351046059,1738306270336,-3870.78,0.0002,3]
[351046060,1738306270345,-2292.42,0.0002,3]
[351046061,1738306270354,-3696.7,0.0002,3]
[351046062,1738306270363,-500.0,0.0002,3]
[351046063,1738306270372,-1183.26,0.0002,3]
[351046064,1738306270381,-6297.68,0.0002,3]
[351046065,1738306270391,-500.0,0.0002,3]
[351046066,1738306270401,-500.0,0.0002,3]
[351046067,1738306270410,-500.0,0.0002,3]
[351046068,1738306270420,-503.64,0.0002,3]
[351046069,1738306270429,-1370.04,0.0002,3]
[351046070,1738306270438,-1253.5,0.0002,3]
[351046071,1738306270448,-1000.0,0.0002,2]
[351046072,1738306270458,-500.0,0.0002,3]
[351046073,1738306270470,-5825.14,0.0002,3]
[351046074,1738306270479,-2653.46,0.0002,3]
[351046075,1738306270491,-3929.43,0.0002,3]
[351046076,1738306270501,-1666.5,0.0002,3]
[351046077,1738306270512,-500.0,0.0002,3]
[351046078,1738306270521,-2750.04,0.0002,3]
[351046079,1738306270533,-1164.08,0.0002,3]
[351046080,1738306270544,-2244.68,0.0002,3]
[351046081,1738306270554,-2391.97,0.0002,3]
[351046082,1738306270565,-500.0,0.0002,3]
[351046083,1738306270576,-3028.69,0.0002,3]
[351046084,1738306270585,-3515.3,0.0002,3]
[351046085,1738306270595,-2135.03,0.0002,3]
[351046086,1738306270605,-3198.65,0.0002,3]
[351046087,1738306270615,-1116.45,0.0002,3]
[351046088,1738306270626,-1464.88,0.0002,3]
[351046089,1738306270635,-500.0,0.0002,3]
[351046090,1738306270646,-721.78,0.0002,3]
[351046091,1738306270655,-732.68,0.0002,3]
[351046092,1738306270665,-1706.56,0.0002,3]
[351046093,1738306270676,-1804.53,0.0002,3]
[351046094,1738306270687,-7789.26,0.0002,3]
[351046095,1738306270698,-500.0,0.0002,3]
[351046096,1738306270708,-816.3,0.0002,3]
[351046097,1738306270717,-1185.11,0.0002,3]
[351046098,1738306270727,-500.0,0.0002,3]
[351046099,1738306270736,-2669.85,0.0002,3]
[351046100,1738306270745,-500.0,0.0002,3]
[351046101,1738306270755,-1265.83,0.0002,3]
[351046102,1738306270766,-1014.36,0.0002,3]
[351046103,1738306270776,-532.0,0.0002,3]
[351046104,1738306270788,-2661.46,0.0002,3]
[351046105,1738306270797,-500.0,0.0002,3]
[351046106,1738306270808,-5046.06,0.0002,3]
[351046107,1738306270818,-878.62,0.0002,3]
[351046108,1738306270828,-2962.42,0.0002,3]
[351046109,1738306270837,-915.16,0.0002,3]
[351046110,1738306270846,-1587.96,0.0002,3]
[351046111,1738306270856,-3780.57,0.0002,3]
[351046112,1738306270866,-1200.49,0.0002,9]
[351046113,1738306270876,-1627.91,0.0002,3]
[351046114,1738306270885,-500.0,0.0002,3]
[351046115,1738306270895,-760.33,0.0002,3]
[351046116,1738306270905,-925.73,0.0002,3]
[351046117,1738306270915,-1648.54,0.0002,3]
[351046118,1738306270925,-1648.91,0.0002,3]
[351046119,1738306270936,-500.0,0.0002,3]
[351046120,1738306270946,-981.99,0.0002,3]
[351046121,1738306270956,-500.0,0.0002,3]
[351046122,1738306270967,-1799.13,0.0002,3]
[351046123,1738306270976,-1292.12,0.0002,3]
[351046124,1738306270986,-776.44,0.0002,3]
[351046125,1738306270995,-2207.59,0.0002,3]
[351046126,1738306271006,-559.42,0.0002,3]
[351046127,1738306271019,-500.0,0.0002,3]
[351046128,1738306271029,-1064.84,0.0002,3]
[351046129,1738306271038,-1741.92,0.0002,3]
[351046130,1738306271048,-500.0,0.0002,3]
[351046131,1738306271058,-3067.11,0.0002,3]
[351046132,1738306271068,-609.2,0.0002,3]
[351046133,1738306271078,-4674.57,0.0002,3]
[351046134,1738306271090,-686.33,0.0002,3]
[351046135,1738306271100,-500.0,0.0002,3]
[351046136,1738306271110,-2396.66,0.0002,3]
[351046137,1738306271119,-905.59,0.0002,3]
[351046138,1738306271129,-150.0,0.00020005,4]
[351046139,1738306271138,-767.51128421,0.00020021,2]
[351046140,1738306271148,-4308.87172391,0.00020022,2]
[351046141,1738306271160,-202.1318935,0.00020039,2]
[351046142,1738306271171,-49105.65877438,0.0002004,2]
[351046143,1738306271182,-150.0,0.00020061,4]
[351046144,1738306271192,-500.0,0.00020062,2]
[351046145,1738306271201,-150.0,0.00020098,4]
[351046146,1738306271212,-1000.1716,0.00020099,2]
[351046147,1738306271222,-1000.0,0.000201,2]
[351046148,1738306271232,-768.34,0.00020135,3]
[351046149,1738306271242,-768.34,0.00020135,3]
[351046150,1738306271251,-500.0,0.00020136,3]
[351046151,1738306271262,-500.0,0.00020136,3]
[351046152,1738306271272,-500.0,0.00020136,3]
[351046153,1738306271282,-500.0,0.00020136,3]
[351046154,1738306271292,-500.0,0.00020136,3]
[351046155,1738306271302,-500.0,0.00020136,3]
[351046156,1738306271312,-500.0,0.00020136,3]
[351046157,1738306271321,-500.0,0.00020136,3]
[351046158,1738306271331,-500.0,0.00020136,3]
[351046159,1738306271340,-618.9,0.00020136,3]
[351046160,1738306271350,-500.0,0.00020136,3]
[351046161,1738306271359,-602.48,0.00020136,3]
[351046162,1738306271369,-839.47,0.00020136,3]
[351046163,1738306271378,-500.0,0.00020136,3]
[351046164,1738306271388,-504.54,0.00020136,3]
[351046165,1738306271397,-500.0,0.00020136,3]
[351046166,1738306271407,-500.0,0.00020136,3]
[351046167,1738306271416,-524.85,0.00020136,3]
[351046168,1738306271425,-593.95,0.00020136,3]
[351046169,1738306271434,-500.0,0.00020136,3]
[351046170,1738306271444,-499.04286599,0.00020136,3]
[351046171,1738306271454,-500.0,0.00020136,3]
[351046172,1738306271464,-2153.056468,0.00020136,3]
[351046173,1738306271474,-832.59,0.00020136,3]
[351046174,1738306271483,-153.492444,0.00020136,3]
[351046175,1738306271493,-906.17,0.00020136,3]
[351046176,1738306271502,-542.98782033,0.00020136,3]
[351046177,1738306271511,-650.25,0.00020136,3]
[351046178,1738306271521,-1066.56,0.00020136,3]
[351046179,1738306271531,-1499.477048,0.00020136,3]
[351046180,1738306271540,-500.0,0.00020136,3]
[351046181,1738306271550,-500.0,0.00020136,3]
[351046182,1738306271559,-500.0,0.00020136,3]
[351046183,1738306271569,-717.04,0.00020136,3]
[351046184,1738306271578,-500.0,0.00020136,3]
[351046185,1738306271588,-500.0,0.00020136,3]
[351046186,1738306271597,-500.0,0.00020136,3]
[351046187,1738306271607,-500.0,0.00020136,3]
[351046188,1738306271617,-500.0,0.00020136,3]
[351046189,1738306271626,-427.80996375,0.00020136,3]
[351046190,1738306271636,-634.07,0.00020136,3]
[351046191,1738306271645,-975.34,0.00020136,3]
[351046192,1738306271655,-500.0,0.00020136,3]
[351046193,1738306271664,-500.0,0.00020136,3]
[351046194,1738306271673,-500.0,0.00020136,3]
[351046195,1738306271683,-500.0,0.00020136,3]
[351046196,1738306271693,-500.0,0.00020136,3]
[351046197,1738306271703,-500.0,0.00020136,3]
[351046198,1738306271714,-666.34,0.00020136,3]
[351046199,1738306271724,-678.47,0.00020136,3]
[351046200,1738306271733,-662.92,0.00020136,3]
[351046201,1738306271743,-500.0,0.00020136,3]
[351046202,1738306271752,-500.0,0.00020136,3]
[351046203,1738306271762,-500.0,0.00020136,3]
[351046204,1738306271771,-1117.45,0.00020136,3]
[351046205,1738306271781,-702.33,0.00020136,3]
[351046206,1738306271790,-604.08,0.00020136,3]
[351046207,1738306271799,-498.00881592,0.00020136,3]
[351046208,1738306271809,-1293.05,0.00020136,3]
[351046209,1738306271819,-542.25,0.00020136,3]
[351046210,1738306271829,-960.27,0.00020136,3]
[351046211,1738306271839,-568.51,0.00020136,3]
[351046212,1738306271849,-718.36,0.00020136,3]
[351046213,1738306271859,-500.0,0.00020136,3]
[351046214,1738306271868,-1056.78,0.00020136,3]
[351046215,1738306271878,-500.0,0.00020136,3]
[351046216,1738306271888,-581.44,0.00020136,3]
[351046217,1738306271897,-678.95,0.00020136,3]
[351046218,1738306271907,-500.0,0.00020136,3]
[351046219,1738306271916,-500.0,0.00020136,3]
[351046220,1738306271926,-500.0,0.00020136,3]
[351046221,1738306271936,-859.88,0.00020136,3]
[351046222,1738306271945,-500.0,0.00020136,3]
[351046223,1738306271955,-500.0,0.00020136,3]
[351046224,1738306271969,-1253.69,0.00020136,3]
[351046225,1738306271979,-500.0,0.00020136,3]
[351046226,1738306271990,-500.0,0.00020136,3]
[351046227,1738306272001,-709.31,0.00020136,3]
[351046228,1738306272013,-592.15,0.00020136,3]
[351046229,1738306272023,-500.0,0.00020136,3]
[351046230,1738306272034,-500.0,0.00020136,3]
[351046231,1738306272044,-616.48,0.00020136,3]
[351046232,1738306272055,-384.39090273,0.00020136,3]
[351046233,1738306272066,-1153.93,0.00020136,3]
[351046234,1738306272076,-536.54,0.00020136,3]
[351046235,1738306272087,-560.68,0.00020136,3]
[351046236,1738306272097,-707.1,0.00020136,3]
[351046237,1738306272108,-500.0,0.00020136,3]
[351046238,1738306272117,-839.24,0.00020136,3]
[351046239,1738306272127,-500.0,0.00020136,3]
[351046240,1738306272137,-500.0,0.00020136,3]
[351046241,1738306272147,-500.0,0.00020136,3]
[351046242,1738306272157,-500.0,0.00020136,3]
[351046243,1738306272167,-728.4,0.00020136,3]
[351046244,1738306272178,-1433.98,0.00020136,3]
[351046245,1738306272187,-563.56526729,0.00020136,3]
[351046246,1738306272197,-997.28,0.00020136,3]
[351046247,1738306272207,-1167.42,0.00020136,3]
[351046248,1738306272218,-500.0,0.00020136,3]
[351046249,1738306272228,-500.0,0.00020136,3]
[351046250,1738306272237,-500.0,0.00020136,3]
[351046251,1738306272247,-536.85,0.00020136,3]
[351046252,1738306272256,-628.24,0.00020136,3]
[351046253,1738306272266,-1006.28,0.00020136,3]
[351046254,1738306272275,-199.41208495,0.00020136,3]
[351046255,1738306272285,-508.69,0.00020136,2]
[351046256,1738306272295,-1033.67,0.00020136,3]
[351046257,1738306272305,-501.39,0.00020136,3]
[351046258,1738306272315,-375.09702339,0.00020136,3]
[351046259,1738306272325,-500.0,0.00020136,3]
[351046260,1738306272335,-500.0,0.00020136,3]
[351046261,1738306272345,-500.0,0.00020136,3]
[351046262,1738306272355,-541.07,0.00020136,3]
[351046263,1738306272365,-1146.06,0.00020136,3]
[351046264,1738306272375,-500.0,0.00020136,3]
[351046265,1738306272385,-500.0,0.00020136,3]
[351046266,1738306272395,-500.0,0.00020136,3]
[351046267,1738306272405,-538.76,0.00020136,3]
[351046268,1738306272415,-500.0,0.00020136,3]
[351046269,1738306272425,-629.83,0.00020136,3]
[351046270,1738306272435,-150.671323,0.00020136,3]
[351046271,1738306272445,-563.8,0.00020136,3]
[351046272,1738306272455,-500.0,0.00020136,3]
[351046273,1738306272466,-612.23,0.00020136,3]
[351046274,1738306272475,-500.0,0.00020136,3]
[351046275,1738306272486,-500.0,0.00020136,3]
[351046276,1738306272496,-1133.72,0.00020136,3]
[351046277,1738306272506,-728.69,0.00020136,3]
[351046278,1738306272516,-1066.0,0.00020136,3]
[351046279,1738306272525,-1104.72,0.00020136,3]
[351046280,1738306272534,-502.71,0.00020136,3]
[351046281,1738306272544,-806.0,0.00020136,3]
[351046282,1738306272553,-500.0,0.00020136,3]
[351046283,1738306272563,-500.0,0.00020136,3]
[351046284,1738306272572,-500.0,0.00020136,3]
[351046285,1738306272582,-516.74,0.00020136,3]
[351046286,1738306272592,-500.0,0.00020136,3]
[351046287,1738306272601,-1115.4,0.00020136,3]
[351046288,1738306272611,-726.75,0.00020136,3]
[351046289,1738306272620,-755.18,0.00020136,3]
[351046290,1738306272630,-500.0,0.00020136,3]
[351046291,1738306272639,-618.65,0.00020136,3]
[351046292,1738306272649,-917.2,0.00020136,3]
[351046293,1738306272658,-847.88,0.00020136,3]
[351046294,1738306272668,-1239.48,0.00020136,3]
[351046295,1738306272678,-500.0,0.00020136,3]
[351046296,1738306272687,-633.32,0.00020136,3]
[351046297,1738306272865,-1824.23,0.00020136,3]
[351046298,1738306272875,-500.0,0.00020136,3]
[351046299,1738306272884,-500.0,0.00020136,3]
[351046300,1738306272895,-500.0,0.00020136,3]
[351046301,1738306272905,-500.0,0.00020136,3]
[351046302,1738306272914,-821.59,0.00020136,3]
[351046303,1738306272923,-500.0,0.00020136,3]
[351046304,1738306272934,-500.0,0.00020136,3]
[351046305,1738306272943,-1462.22,0.00020136,3]
[351046306,1738306272952,-500.0,0.00020136,3]
[351046307,1738306272963,-815.19,0.00020136,3]
[351046308,1738306272972,-500.0,0.00020136,3]
[351046309,1738306272982,-720.68,0.00020136,3]
[351046310,1738306272991,-500.0,0.00020136,3]
[351046311,1738306273001,-1052.43,0.00020136,3]
[351046312,1738306273012,-500.0,0.00020136,3]
[351046313,1738306273024,-500.0,0.00020136,3]
[351046314,1738306273034,-519.86,0.00020136,3]
[351046315,1738306273044,-500.0,0.00020136,3]
[351046316,1738306273055,-762.44,0.00020136,3]
[351046317,1738306273065,-500.0,0.00020136,3]
[351046318,1738306273074,-500.0,0.00020136,3]
[351046319,1738306273085,-500.0,0.00020136,3]
[351046320,1738306273094,-500.0,0.00020136,3]
[351046321,1738306273104,-596.94,0.00020136,3]
[351046322,1738306273114,-500.0,0.00020136,3]
[351046323,1738306273124,-870.85,0.00020136,3]
[351046324,1738306273134,-3120.26,0.00020136,3]
[351046325,1738306273144,-514.66,0.00020136,3]
[351046326,1738306273154,-500.0,0.00020136,3]
[351046327,1738306273164,-1059.42,0.00020136,3]
[351046328,1738306273174,-955.99,0.00020136,3]
[351046329,1738306273184,-696.01,0.00020136,2]
[351046330,1738306273194,-920.05,0.00020136,3]
[351046331,1738306273204,-500.0,0.00020136,3]
[351046332,1738306273215,-500.0,0.00020136,3]
[351046333,1738306273225,-1737.45,0.00020136,3]
[351046334,1738306273235,-883.16,0.00020136,3]
[351046335,1738306273246,-2134.12,0.00020136,3]
[351046336,1738306273256,-500.0,0.00020136,3]
[351046337,1738306273265,-839.72,0.00020136,3]
[351046338,1738306273275,-1385.09,0.00020136,3]
[351046339,1738306273285,-1169.41,0.00020136,3]
[351046340,1738306273294,-1394.44,0.00020136,3]
[351046341,1738306273304,-500.0,0.00020136,3]
[351046342,1738306273314,-500.0,0.00020136,3]
[351046343,1738306273324,-3348.08,0.00020136,3]
[351046344,1738306273333,-500.0,0.00020136,3]
[351046345,1738306273343,-924.15,0.00020136,3]
[351046346,1738306273352,-500.0,0.00020136,3]
[351046347,1738306273362,-1127.44,0.00020136,3]
[351046348,1738306273371,-674.08,0.00020136,3]
[351046349,1738306273381,-3250.85,0.00020136,3]
[351046350,1738306273391,-1133.24,0.00020136,3]
[351046351,1738306273400,-1845.5,0.00020136,3]
[351046352,1738306273410,-500.0,0.00020136,3]
[351046353,1738306273420,-1954.11,0.00020136,3]
[351046354,1738306273430,-500.0,0.00020136,3]
[351046355,1738306273440,-500.0,0.00020136,3]
[351046356,1738306273450,-500.0,0.00020136,3]
[351046357,1738306273460,-500.0,0.00020136,3]
[351046358,1738306273471,-500.0,0.00020136,3]
[351046359,1738306273481,-645.35,0.00020136,3]
[351046360,1738306273491,-942.8,0.00020136,3]
[351046361,1738306273501,-500.0,0.00020136,3]
[351046362,1738306273510,-4610.94,0.00020136,3]
[351046363,1738306273520,-6387.1,0.00020136,3]
[351046364,1738306273531,-594.96,0.00020136,3]
[351046365,1738306273540,-500.0,0.00020136,3]
[351046366,1738306273550,-766.14,0.00020136,3]
[351046367,1738306273560,-519.2,0.00020136,3]
[351046368,1738306273570,-582.14,0.00020136,3]
[351046369,1738306273579,-11987.44,0.00020136,3]
[351046370,1738306273589,-1269.84,0.00020136,3]
[351046371,1738306273598,-500.0,0.00020136,3]
[351046372,1738306273607,-1367.61,0.00020136,3]
[351046373,1738306273617,-937.78,0.00020136,3]
[351046374,1738306273626,-1640.43,0.00020136,3]
[351046375,1738306273635,-540.26,0.00020136,3]
[351046376,1738306273644,-1981.83,0.00020136,3]
[351046377,1738306273653,-8948.91,0.00020136,3]
[351046378,1738306273663,-2567.08,0.00020136,3]
[351046379,1738306273672,-631.98,0.00020136,3]
[351046380,1738306273681,-750.68,0.00020136,3]
[351046381,1738306273691,-2616.13,0.00020136,3]
[351046382,1738306273700,-1071.39,0.00020136,3]